[Event "ECo-C Extraliga 2023-24"]
[Site "Slovakia"]
[Date "2024.02.25"]
[Round "8.6"]
[White "Brnusak, Tomas"]
[Black "Dobrotka, Martin"]
[Result "0-1"]
[ECO "B32"]
[WhiteElo "2229"]
[BlackElo "2166"]
[Annotator "TA"]
[PlyCount "86"]
[EventDate "2023.10.06"]
[EventType "team-tourn"]
[EventCountry "SVK"]
[SourceTitle "playchess.com"]
[Source "ChessBase"]
[SourceQuality "1"]
[TimeControl "40/5400+30:1800+30"]

{[%evp 14,86,32,31,34,29,43,29,49,52,52,57,52,43,54,47,44,20,23,15,26,9,35,11,49,22,29,35,41,31,80,70,92,104,95,57,72,18,47,38,41,-161,-156,-117,-120,-852,-853,-879,-808,-889,-837,-895,-893,-888,-866,-960,-939,-29985,-29977,-29977,-29978,-29978,-29979,-29977,-698,-685,-662,-633,-620,-911,-886,-864,-751,-640,-638]} 1. e4 {[%emt 0:00:03]} c5 {[%emt 0:01:39]} 2. Nf3 {[%emt 0:00:11]} Nc6 {[%emt 0:00:05]} 3. d4 {[%emt 0:00:05]} cxd4 {[%emt 0:00:05]} 4. Nxd4 {[%emt 0:00:05]} e5 {[%emt 0:01:01]} 5. Nb5 {[%emt 0:00:07]} a6 {[%emt 0:00:17]} 6. Nd6+ {[%emt 0:00:05]} Bxd6 {[%emt 0:00:04]} 7. Qxd6 {[%emt 0:00:05]} Qe7 {[%emt 0:00:04]} 8. Qd1 {[%emt 0:00:05]} d6 {[%emt 0:00:14]} 9. Nc3 {[%emt 0:00:04] And now Nd5 would win.} Be6 {[%emt 0:00:04]} 10. Nd5 {[%emt 0:00:09]} Qd8 {[%emt 0:00:17] White has an edge.} 11. c4 {[%emt 0:00:10]} Bxd5 {[%emt 0:08:52]} 12. exd5 {[%emt 0:02:03]} ({But not} 12. Qxd5 Nd4 13. Bd3 Qc7 $15) 12... Nce7 {[%emt 0:01:06]} 13. Be2 {[%emt 0:06:36]} Nf6 {[%emt 0:01:44]} 14. O-O {[%emt 0:00:17]} O-O {[%emt 0:00:52]} 15. Kh1 {[%emt 0:05:21]} Ng6 {[%emt 0:02:34]} 16. Be3 {[%emt 0:01:22]} Re8 {[%emt 0:00:39]} 17. Rc1 {[%emt 0:07:49]} b6 {[%emt 0:12:26]} 18. g3 {[%emt 0:05:01][%cal Bg2g3,Bg3g4][%mdl 32]} a5 {[%emt 0:01:59]} 19. h4 {[%emt 0:05:43]} Nf8 {[%emt 0:16:38]} 20. b3 {[%emt 0:05:36]} N8d7 {[%emt 0:06:17]} 21. a3 {[%emt 0:06:37]} Qb8 {[%emt 0:05:03]} (21... h6 $14) 22. g4 $16 {[%emt 0:03:09]} Nf8 {[%emt 0:16:29]} 23. h5 {[%emt 0:05:03] Against Ng6} h6 {[%emt 0:20:41]} 24. Rg1 {[%emt 0:12:57]} N6h7 {[%emt 0:00:24]} 25. Bd3 {[%emt 0:03:12] Black is weak on the light squares} (25. g5 $16 Nxg5 26. Bxg5 hxg5 27. Rxg5) 25... Qd8 {[%emt 0:00:19]} 26. Bf5 {[%emt 0:01:08]} Ng5 {[%emt 0:00:22]} 27. f4 $2 {[%emt 0:01:39] [#]} (27. Rc3 $14) 27... exf4 $1 $19 {[%emt 0:00:31]} 28. Bxf4 {[%emt 0:02:44] [#]} Nh3 $1 {[%emt 0:00:28][%csl LRf4,LRg1]} 29. Rf1 {[%emt 0:03:34][%mdl 8192] Inhibits Nf2+.} (29. Qf3 $17 Nxg1 30. Rxg1) 29... Nxf4 {[%emt 0:00:11]} 30. Rxf4 {[%emt 0:00:08]} Qh4+ {[%emt 0:00:51]} 31. Kg2 {[%emt 0:00:05]} Re3 {[%emt 0:00:15]} 32. Rf3 {[%emt 0:02:42] Repels Qg3+} Rae8 {[%emt 0:00:09] ( -> ...Re2+)} 33. Qf1 {[%emt 0:02:33]} g6 {[%emt 0:02:40]} 34. hxg6 {[%emt 0:00:05]} Nxg6 {[%emt 0:00:37]} 35. Rc3 {[%emt 0:06:01] [#]} Nf4+ $1 {[%emt 0:00:59][%mdl 512]} 36. Rxf4 {[%emt 0:01:52]} Qg3+ {[%emt 0:00:29]} 37. Kh1 {[%emt 0:00:06]} Rxc3 {[%emt 0:00:18]} 38. Rf2 {[%emt 0:01:45]} Qh3+ {[%emt 0:01:03]} (38... Rce3 $142 39. Be6 fxe6 40. Re2 Rf8 (40... Rxb3 $2 41. Qe1 $19) 41. Qxf8+ Kxf8 42. Rxe3 Qxe3 43. Kg2 exd5 (43... Qxb3 {is a self mate.} 44. dxe6 Qxa3 45. Kf2 Qd3 46. Kg2 a4 47. c5 dxc5 48. g5 hxg5 49. Kh2 a3 50. Kg2 a2 51. Kh2 a1=Q 52. e7+ Kxe7 53. Kg2 Qaf1+ 54. Kh2 Qdh3#) 44. c5 dxc5 45. b4 d4 (45... cxb4 {gets mated.} 46. axb4 axb4 47. g5 hxg5 48. Kh1 b3 49. Kg2 b2 50. Kh2 b1=Q 51. Kg2 Qbg1#) 46. bxc5 bxc5 47. a4 d3 48. g5 d2 (48... Qxg5+ 49. Kf3 d2 50. Ke2 Qf4 51. Kd1 Qd4 52. Ke2 d1=Q#) 49. g6 d1=Q (49... d1=B 50. g7+ Kxg7 51. Kf1 Qf3+ 52. Kg1 Bxa4 53. Kh2 Qf2+ 54. Kh3 Bd7#) 50. g7+ Kxg7 51. Kh2 Qdg1#) 39. Qxh3 {[%emt 0:00:04] Black is clearly winning.} Rxh3+ {[%emt 0:00:02]} 40. Kg2 {[%emt 0:00:09]} Rxb3 {[%emt 0:00:06]} 41. Bd7 {[%emt 0:31:00]} Re7 {[%emt 0:02:59]} 42. Bb5 {[%emt 0:00:00]} Kg7 {[%emt 0:00:20]} 43. a4 {[%emt 0:00:00]} Re4 {[%emt 0:02:39] Weighted Error Value: White=0.63/Black=0.20 (precise) .  Loses game:     	White=2     	---        Mistake:       	White=1     	Black=1      Inaccurate:     	White=2     	Black=3      OK:         	White=4     	Black=6      Best:        	White=1     	Black=1      Strong:       	---       	Black=2} 0-1

[Event "ECo-C Extraliga 2023-24"]
[Site "Slovakia"]
[Date "2024.02.25"]
[Round "8.6"]
[White "Ihnat, Marek"]
[Black "Urhegyi, Marton"]
[Result "1/2-1/2"]
[ECO "C00"]
[WhiteElo "2111"]
[BlackElo "2255"]
[Annotator "TA"]
[PlyCount "43"]
[EventDate "2023.10.06"]
[EventType "team-tourn"]
[EventCountry "SVK"]
[SourceTitle "playchess.com"]
[Source "ChessBase"]
[SourceQuality "1"]
[TimeControl "40/5400+30:1800+30"]

{[%evp 9,43,55,70,68,64,29,43,28,32,11,8,20,27,0,33,10,39,40,64,19,25,18,30,32,44,0,12,3,28,0,0,0,8,0,7,0]} 1. e4 {[%emt 0:00:03]} e6 {[%emt 0:00:10]} 2. d4 {[%emt 0:00:17]} b6 {[%emt 0:00:05]} 3. Bd3 {[%emt 0:00:15]} Bb7 {[%emt 0:00:12]} 4. Nf3 {[%emt 0:00:20]} c5 {[%emt 0:01:10]} 5. c3 {[%emt 0:00:51]} d6 {[%emt 0:02:35]} 6. Qe2 {[%emt 0:01:01] White is more active.} Nd7 {[%emt 0:03:45]} 7. Na3 {[%emt 0:06:06]} Ngf6 {[%emt 0:19:28][%cal Bg8f6,Bf6h7,Bh7g5,Bg5f3][%mdl 32]} 8. Bf4 {[%emt 0:07:47] White is slightly better.} a6 {[%emt 0:11:29]} 9. h3 {[%emt 0:03:52]} b5 {[%emt 0:00:30]} 10. O-O {[%emt 0:00:30]} Be7 {[%emt 0:00:30]} 11. Rfe1 {[%emt 0:00:30]} h6 {[%emt 0:00:30]} 12. Bh2 {[%emt 0:00:30]} Nh7 {[%emt 0:00:30]} 13. Nb1 {[%emt 0:00:30][%cal Ba3b1,Bb1d2,Bd2f3,Bf3e5][%mdl 32]} Ng5 {[%emt 0:00:30]} 14. Nbd2 {[%emt 0:00:30]} Nxf3+ {[%emt 0:32:03]} 15. Nxf3 {[%emt 0:22:10]} c4 {[%emt 0:04:04]} 16. Bc2 {[%emt 0:00:24]} Qc7 {[%emt 0:01:14]} 17. e5 {[%emt 0:04:00]} O-O {[%emt 0:04:01]} 18. Rad1 {[%emt 0:06:58]} dxe5 {[%emt 0:00:30]} 19. Nxe5 {[%emt 0:00:30]} Bd6 {[%emt 0:00:30] The position is equal.} 20. Ng4 {[%emt 0:00:30]} Bxh2+ {[%emt 0:00:30]} 21. Nxh2 {[%emt 0:00:30]} Nf6 {[%emt 0:00:30]} 22. Ng4 {[%emt 0:00:30] Weighted Error Value: White=0.17 (very precise) /Black=0.10 (very precise) .  Inaccurate:     	White=5     	Black=2      OK:         	White=2     	Black=6} 1/2-1/2

[Event "ECo-C Extraliga 2023-24"]
[Site "Slovakia"]
[Date "2024.02.25"]
[Round "8.6"]
[White "Skreko, Igor"]
[Black "Csonka, Attila Istvan"]
[Result "1/2-1/2"]
[ECO "E37"]
[WhiteElo "2103"]
[BlackElo "2294"]
[Annotator "TA"]
[PlyCount "144"]
[EventDate "2023.10.06"]
[EventType "team-tourn"]
[EventCountry "SVK"]
[SourceTitle "playchess.com"]
[Source "ChessBase"]
[SourceQuality "1"]
[TimeControl "40/5400+30:1800+30"]

{[%evp 20,143,22,8,13,10,41,12,7,10,18,2,10,16,28,0,0,0,0,9,4,0,13,18,14,0,0,0,23,27,20,24,37,-28,-27,-25,-19,-45,-53,-57,-37,-74,-76,-66,-65,-57,-57,-57,-57,-57,-57,-57,-57,-57,-57,-57,-57,-57,-57,-94,-94,-94,-94,-94,-94,-94,-94,-94,-94,-94,-94,-94,-94,-94,-94,-94,-94,-94,-94,-94,-94,-94,-94,-94,-94,-94,-94,-94,0,-94,0,-94,-94,-94,0,0,0,0,0,0,0,0,0,0,0,0,0,-99,-8,-99,0,-99,0,0,0,0,0,-89,-69,-89,-89,-102,0,0,-151,0]} 1. d4 {[%emt 0:00:06]} Nf6 {[%emt 0:00:21]} 2. c4 {[%emt 0:00:06]} e6 {[%emt 0:00:20]} 3. Nc3 {[%emt 0:00:05]} Bb4 {[%emt 0:00:25]} 4. Qc2 {[%emt 0:00:32]} d5 {[%emt 0:00:57]} 5. a3 {[%emt 0:00:04]} Bxc3+ {[%emt 0:01:00]} 6. Qxc3 {[%emt 0:00:02]} Ne4 {[%emt 0:00:30]} 7. Qc2 {[%emt 0:00:05]} c5 {[%emt 0:00:18]} 8. dxc5 {[%emt 0:02:32]} Nc6 {[%emt 0:00:20]} 9. e3 {[%emt 0:02:29]} Qa5+ {[%emt 0:00:59]} 10. Bd2 {[%emt 0:00:07]} Nxd2 {[%emt 0:00:16]} 11. Qxd2 {[%emt 0:00:05] Droht b4 und aus.} dxc4 {[%emt 0:00:15]} 12. Bxc4 {[%emt 0:01:19] Und b4 würde nun gewinnen.} Qxc5 {[%emt 0:01:09]} 13. Rc1 {[%emt 0:00:25][%cal Oc4e6]} Qe7 {[%emt 0:05:01]} 14. Nf3 {[%emt 0:02:52]} O-O {[%emt 0:00:39]} 15. O-O {[%emt 0:00:08]} Rd8 {[%emt 0:04:01]} 16. Qe2 {[%emt 0:00:25]} e5 {[%emt 0:02:23]} 17. Bb5 {[%emt 0:04:54]} Bd7 {[%emt 0:03:40]} 18. Rfd1 {[%emt 0:02:53]} a6 {[%emt 0:01:46]} 19. Ba4 {[%emt 0:00:25]} Rac8 {[%emt 0:12:30]} 20. h3 {[%emt 0:05:28]} f6 {[%emt 0:07:31]} 21. Bb3+ {[%emt 0:05:01]} Be6 {[%emt 0:00:30]} 22. Bxe6+ {[%emt 0:01:46]} Qxe6 {[%emt 0:00:05]} 23. Nd2 {[%emt 0:01:04]} e4 {[%emt 0:06:35]} (23... f5 $5) 24. Qc4 {[%emt 0:05:46]} Qxc4 {[%emt 0:01:09]} 25. Nxc4 {[%emt 0:00:06]} Rc7 {[%emt 0:00:20]} 26. Nb6 {[%emt 0:05:22]} (26. g4 $14) 26... Rxd1+ $11 {[%emt 0:00:50]} 27. Rxd1 {[%emt 0:00:02][%mdl 4096] Endspiel. KRN-KRN} Ne5 {[%emt 0:00:49]} 28. Rd4 {[%emt 0:03:47]} Rc1+ {[%emt 0:01:19]} 29. Kh2 {[%emt 0:00:05][%cal Ob2b4]} Rc2 {[%emt 0:00:05][%csl LRb2,LRf2]} 30. Rxe4 {[%emt 0:04:34]} Rxf2 {[%emt 0:04:55]} 31. b4 {[%emt 0:04:31]} Ra2 {[%emt 0:04:02]} 32. Nc4 {[%emt 0:02:18]} Nxc4 {[%emt 0:07:46]} 33. Rxc4 {[%emt 0:00:17]} Rxa3 $15 {[%emt 0:00:50] KR-KR} 34. Rc8+ {[%emt 0:00:07]} Kf7 {[%emt 0:00:05]} 35. Rc7+ {[%emt 0:00:07]} Kg6 {[%emt 0:00:05]} 36. Rxb7 {[%emt 0:00:08]} Rxe3 {[%emt 0:00:05]} 37. Ra7 {[%emt 0:00:25]} Rb3 {[%emt 0:00:09]} 38. Rxa6 {[%emt 0:00:06]} Rxb4 {[%emt 0:00:05]} 39. Ra5 {[%emt 0:00:20]} h5 {[%emt 0:00:47]} 40. Kg3 {[%emt 0:00:52]} h4+ {[%emt 0:00:23]} 41. Kf3 {[%emt 0:30:12]} f5 {[%emt 0:30:30]} 42. Ra7 {[%emt 0:00:38]} Kf6 {[%emt 0:00:07]} 43. Rc7 {[%emt 0:00:43]} Rb3+ {[%emt 0:00:54]} 44. Kf2 {[%emt 0:00:10]} g6 {[%emt 0:00:35]} 45. Rh7 {[%emt 0:01:07]} Rb4 {[%emt 0:01:42]} 46. Kf3 {[%emt 0:00:29]} g5 {[%emt 0:01:04]} 47. Ra7 {[%emt 0:01:27]} Rb3+ {[%emt 0:06:06]} 48. Kf2 {[%emt 0:00:15]} Rd3 {[%emt 0:00:06]} 49. Ra5 {[%emt 0:02:52]} Ke6 {[%emt 0:00:59]} 50. Rb5 {[%emt 0:00:36]} Rd5 {[%emt 0:00:15]} 51. Rb8 {[%emt 0:01:44]} Rc5 {[%emt 0:02:51]} 52. Kf3 {[%emt 0:01:10]} Rc3+ {[%emt 0:09:48]} 53. Kf2 {[%emt 0:02:26]} Rd3 {[%emt 0:00:22]} 54. Rb5 $1 {[%emt 0:00:29]} Kf6 {[%emt 0:00:08]} 55. Ra5 $1 {[%emt 0:00:14]} Kg6 {[%emt 0:01:15]} 56. Ra8 {[%emt 0:01:47]} g4 {[%emt 0:01:15]} (56... Kf7 $17) 57. hxg4 $11 {[%emt 0:00:56]} fxg4 {[%emt 0:00:04]} 58. Rg8+ {[%emt 0:00:12]} Kf5 {[%emt 0:00:05]} 59. Rf8+ {[%emt 0:00:31]} Ke5 {[%emt 0:00:06]} 60. Re8+ {[%emt 0:00:49]} Kf6 {[%emt 0:02:48]} 61. Rf8+ $1 {[%emt 0:01:29]} Ke5 {[%emt 0:03:27]} 62. Re8+ {[%emt 0:01:09]} Kd4 {[%emt 0:00:07]} 63. Rd8+ {[%emt 0:01:14]} (63. Rg8 $11) 63... Kc3 $1 $17 {[%emt 0:00:33]} 64. Rh8 {[%emt 0:00:42] [#]} (64. Rb8 $11) 64... Rd2+ {[%emt 0:00:31]} (64... Kd2 $1 $17) 65. Kf1 {[%emt 0:00:30]} (65. Ke3 $11 Rxg2 66. Rxh4) 65... g3 {[%emt 0:00:45]} (65... Kd4 $17) 66. Rc8+ $11 {[%emt 0:01:14]} (66. Rxh4 {wird mattgesetzt.} Kd3 67. Ke1 Rb2 (67... Rxg2 68. Kf1 $11) (67... Rxg2 68. Kf1 $11)) 66... Kd3 {[%emt 0:04:33][%cal Rd2d1]} 67. Rd8+ {[%emt 0:01:09]} Kc2 {[%emt 0:04:13]} 68. Rxd2+ {[%emt 0:00:48]} (68. Rh8 $11) 68... Kxd2 $17 {[%emt 0:00:06]} 69. Kg1 {[%emt 0:00:03]} Ke2 {[%emt 0:00:22]} 70. Kh1 {[%emt 0:00:04] [#]} h3 {[%emt 0:00:37]} 71. Kg1 $11 {[%emt 0:00:11]} h2+ {[%emt 0:00:11]} 72. Kh1 {[%emt 0:00:03]} Kf2 {[%emt 0:00:04] Gewichteter Fehlerwert: Weiß=0.06 (makellos) /Schwarz=0.07 (makellos) .  Fehler:       	Weiß=5     	Schwarz=4     Ungenau:       	Weiß=5     	---        OK:         	Weiß=14    	Schwarz=25    Bester:       	Weiß=9     	Schwarz=5     Stark:        	Weiß=3     	Schwarz=1} 1/2-1/2

[Event "ECo-C Extraliga 2023-24"]
[Site "Slovakia"]
[Date "2024.02.25"]
[Round "8.7"]
[White "Meszaros, Michal"]
[Black "Spacek, Oliver"]
[Result "0-1"]
[ECO "B41"]
[WhiteElo "2354"]
[BlackElo "2188"]
[Annotator "TA"]
[PlyCount "61"]
[EventDate "2023.10.06"]
[EventType "team-tourn"]
[EventCountry "SVK"]
[SourceTitle "playchess.com"]
[Source "ChessBase"]
[SourceQuality "1"]
[TimeControl "40/5400+30:1800+30"]

{[%evp 12,61,17,2,64,67,43,41,52,53,41,37,80,78,60,35,48,30,28,22,20,13,13,17,49,58,53,53,58,40,49,31,43,47,47,-69,-69,-69,-68,-69,0,0,0,0,4,-201,-118,-134,-131,-126,-127,-129]} 1. e4 {[%emt 0:00:09]} c5 {[%emt 0:00:05]} 2. Nf3 {[%emt 0:00:13]} e6 {[%emt 0:00:25]} 3. d4 {[%emt 0:00:07]} cxd4 {[%emt 0:00:04]} 4. Nxd4 {[%emt 0:00:10]} a6 {[%emt 0:00:03]} 5. Be2 {[%emt 0:00:10]} Nf6 {[%emt 0:00:37]} 6. Nc3 {[%emt 0:00:12]} Bb4 {[%emt 0:04:13]} 7. Qd3 {[%emt 0:04:03]} d5 {[%emt 0:03:07]} ({Vorzuziehen ist} 7... d6 $11) 8. e5 $14 {[%emt 0:02:58]} Ne4 {[%emt 0:01:29]} 9. O-O {[%emt 0:01:12]} Nxc3 {[%emt 0:10:10] Weiß steht etwas besser.} 10. bxc3 {[%emt 0:00:07]} Be7 {[%emt 0:00:34]} 11. Qg3 {[%emt 0:02:37]} Rg8 {[%emt 0:10:45]} 12. Bd3 {[%emt 0:22:29]} g6 {[%emt 0:20:26]} 13. f4 {[%emt 0:02:01]} Nc6 {[%emt 0:02:43]} 14. Kh1 {[%emt 0:08:08]} h5 {[%emt 0:20:04]} 15. Be3 {[%emt 0:09:42]} Nxd4 {[%emt 0:09:33]} 16. cxd4 {[%emt 0:02:03]} Bd7 {[%emt 0:03:46]} 17. a4 {[%emt 0:09:49][%cal Ba2a4,Ba4a5][%mdl 32]} Rc8 {[%emt 0:02:49]} 18. Bd2 {[%emt 0:03:53]} Bh4 {[%emt 0:04:54]} 19. Qh3 {[%emt 0:03:09]} Be7 {[%emt 0:00:48]} 20. Rg1 {[%emt 0:04:26]} Qb6 {[%emt 0:02:06]} 21. c3 {[%emt 0:07:48]} Bc6 {[%emt 0:00:55]} 22. a5 {[%emt 0:05:24]} Qc7 {[%emt 0:00:20]} 23. g4 {[%emt 0:06:13]} (23. Rgb1 $14) 23... hxg4 $15 {[%emt 0:00:10]} 24. Qh7 {[%emt 0:00:49]} Rf8 {[%emt 0:01:37]} 25. Rxg4 {[%emt 0:02:12][%cal Od3g6]} Rd8 {[%emt 0:00:44]} (25... Bb5 $15 26. Qh3 Kd7) 26. f5 $11 {[%emt 0:01:53]} gxf5 {[%emt 0:00:29]} 27. Rg7 {[%emt 0:00:54][%cal Od3f5] [#] Und Bxf5! würde nun gewinnen.} Bb5 {[%emt 0:00:26]} 28. Bc2 {[%emt 0:00:48]} (28. Bxf5 $11 exf5 29. e6 (29. Qxf5 $2 {ist das falsche Schlagen.} Bd7 $19)) 28... Kd7 {[%emt 0:00:36]} (28... Qc4 $19 29. Qh3 Kd7) 29. Rxf7 $17 {[%emt 0:00:26]} Rxf7 {[%emt 0:00:20]} 30. Qxf7 {[%emt 0:00:01][%cal Oc2f5]} Rf8 {[%emt 0:00:01]} 31. Qg7 {[%emt 0:00:00] Gewichteter Fehlerwert: Weiß=0.24 (präzise) /Schwarz=0.15 (sehr präzise) .  Verlustzug:     	Weiß=1     	---        Fehler:       	Weiß=1     	Schwarz=2     Ungenau:       	---       	Schwarz=2     OK:         	Weiß=8     	Schwarz=9     Bester:       	Weiß=3     	Schwarz=1} 0-1

[Event "ECo-C Extraliga 2023-24"]
[Site "Slovakia"]
[Date "2024.02.25"]
[Round "8.7"]
[White "Halak, Miklos"]
[Black "Sepesi, Samuel"]
[Result "0-1"]
[ECO "C01"]
[WhiteElo "2248"]
[BlackElo "2087"]
[Annotator "TA"]
[PlyCount "84"]
[EventDate "2023.10.06"]
[EventType "team-tourn"]
[EventCountry "SVK"]
[SourceTitle "playchess.com"]
[Source "ChessBase"]
[SourceQuality "1"]
[TimeControl "40/5400+30:1800+30"]

{[%evp 11,83,0,11,0,16,-1,2,4,22,-7,-5,-29,-29,-36,-14,-16,-8,-11,0,0,0,-23,-21,-25,-27,-79,-25,-22,-17,-107,-96,-112,-116,-126,-78,-87,-16,-32,-26,-71,-64,-69,-70,-61,-66,-73,-64,-68,-67,-96,-81,-91,-93,-91,-89,-88,-62,-127,-104,-265,-264,-632,-654,-638,-637,-29976,-29977,-29968,-29970,-29997,-29997,-29997,-29998,-29999]} 1. e4 {[%emt 0:00:03]} e6 {[%emt 0:00:20]} 2. d4 {[%emt 0:01:35]} d5 {[%emt 0:00:07]} 3. exd5 {[%emt 0:01:55]} exd5 {[%emt 0:00:06]} 4. Nf3 {[%emt 0:01:18]} Bd6 {[%emt 0:01:04]} 5. Nc3 {[%emt 0:01:20]} c6 {[%emt 0:01:12]} 6. Bd3 {[%emt 0:00:55]} Nf6 {[%emt 0:08:53]} 7. h3 {[%emt 0:01:36]} h6 {[%emt 0:00:50]} 8. Be3 {[%emt 0:02:35]} Be6 {[%emt 0:02:45]} 9. Qd2 {[%emt 0:07:41] Die Stellung ist ausgeglichen.} Qc7 {[%emt 0:00:53]} 10. Nh4 {[%emt 0:05:01]} Nbd7 {[%emt 0:13:34]} 11. Nf5 {[%emt 0:02:01]} Bxf5 {[%emt 0:00:03]} 12. Bxf5 {[%emt 0:00:05]} O-O-O {[%emt 0:06:06]} 13. O-O-O {[%emt 0:02:50]} Kb8 {[%emt 0:03:53]} 14. Kb1 {[%emt 0:02:58]} Nb6 {[%emt 0:01:32]} 15. b3 {[%emt 0:08:09] Pariert Nc4.} Rhe8 {[%emt 0:03:33]} 16. h4 {[%emt 0:07:27]} Nc8 {[%emt 0:14:23]} 17. f3 {[%emt 0:06:21]} Nh5 {[%emt 0:02:15] Schwarz will ...Ng3 spielen.} 18. Rhe1 {[%emt 0:06:51]} (18. Bxc8 $11 Kxc8 19. g4) 18... Ng3 {[%emt 0:11:23]} (18... Bg3 $17 19. Re2 Nf4 (19... Bxh4 20. g4 $11) 20. Bxf4 Bxf4) 19. Bxc8 $11 {[%emt 0:06:48]} Kxc8 {[%emt 0:02:21]} 20. Ne2 {[%emt 0:00:46] [#]} (20. Bf2 $11) 20... Qe7 $1 $17 {[%emt 0:10:38][%csl LRe3,LRh4]} 21. Nc1 {[%emt 0:10:21][%cal Oe3g5,Be2c1,Bc1d3,Bd3e5][%mdl 32]} Qxh4 {[%emt 0:01:26] Schwarz steht deutlich aktiver.} 22. Bf2 {[%emt 0:00:33]} Qf6 {[%emt 0:04:01]} (22... Qg5 $142 23. Be3 Qf6) 23. Nd3 {[%emt 0:01:50][%cal Od3e5]} a6 {[%emt 0:05:48]} ({Günstiger ist} 23... Rxe1 $17 24. Rxe1 h5) 24. Ne5 $11 {[%emt 0:02:43]} Nh5 {[%emt 0:00:17][%cal Oh5f4]} 25. g4 {[%emt 0:05:28]} Nf4 {[%emt 0:00:14][%cal Of4g6]} 26. Bg3 {[%emt 0:01:36]} g5 {[%emt 0:02:43]} 27. Bxf4 {[%emt 0:00:51]} gxf4 {[%emt 0:00:29]} 28. Qc3 {[%emt 0:01:30][%cal Oe5c6] Und jetzt Nxc6! wäre schön.} Re6 {[%emt 0:00:46]} 29. Rh1 {[%emt 0:07:25]} (29. Nxc6 $2 bxc6 30. Qxc6+ Bc7 31. Qa8+ Bb8 (31... Kd7 $2 32. Qxd5+ Rd6 33. Qc4 $19) 32. Rxe6 Qxe6 $19 (32... fxe6 33. Qxa6+ Kd7 34. Qb5+ Ke7 35. a4 $17)) 29... Rde8 {[%emt 0:02:05]} 30. Rde1 {[%emt 0:03:48]} Qe7 {[%emt 0:00:34]} 31. Nd3 {[%emt 0:00:40] Verhindert Bb4.} Re3 {[%emt 0:00:29]} 32. Ref1 {[%emt 0:00:26]} Qe6 {[%emt 0:01:07]} 33. Qd2 {[%emt 0:00:54]} Re2 {[%emt 0:00:14]} 34. Qc1 {[%emt 0:00:27]} (34. Qc3 $15) 34... Qf6 $17 {[%emt 0:00:45]} 35. Rh5 $2 {[%emt 0:00:35] Verliert die Partie.} (35. Qb2 $17) 35... R8e3 $19 {[%emt 0:00:28]} 36. Rf5 $2 {[%emt 0:00:35]} (36. Re5) 36... Qxd4 {[%emt 0:00:04] Und ...Rxd3 würde nun gewinnen.} 37. Rd1 {[%emt 0:00:31]} Qc3 {[%emt 0:01:01][%cal Od6a3] ...Ba3! wäre nun fies.} ({Schwächer ist} 37... Rxf3 38. Nxf4 Qxf4 (38... Bxf4 39. Rxd4 Bxc1 40. Rxf3 $17) 39. Rxf4 Bxf4 (39... Rxf4 40. a4 $15) 40. Qa3 $17) 38. Nxf4 {[%emt 0:00:17] [#]} Ba3 $1 {[%emt 0:00:18][%mdl 512] Schwarz setzt Matt.} 39. Nxe2 {[%emt 0:00:21]} Rxe2 {[%emt 0:00:14]} 40. Rd3 {[%emt 0:00:52] [#]} Qb2+ $1 {[%emt 0:00:11][%mdl 512]} 41. Qxb2 {[%emt 0:30:18]} Re1+ {[%emt 0:30:03]} 42. Qc1 {[%emt 0:00:14]} Rxc1# {Gewichteter Fehlerwert: Weiß=0.49/Schwarz=0.10 (sehr präzise) .  Verlustzug:     	Weiß=1     	---        Fehler:       	Weiß=4     	Schwarz=3     Ungenau:       	Weiß=3     	---        OK:         	Weiß=13    	Schwarz=14    Bester:       	---       	Schwarz=1     Stark:        	---       	Schwarz=1} 0-1